bitfinex/quotes_BTCUSD_20240620
["timestamp","ask_amount","ask_price","bid_price","bid_amount"]
[1718913168125,0.1151245,65107.0,65106.0,0.25196243]
[1718913168605,0.1151245,65107.0,65106.0,0.25696243]
[1718913169408,0.1151245,65107.0,65106.0,0.26296243]
[1718913171385,0.10823814,65107.0,65106.0,0.26296243]
[1718913172362,0.06882212,65109.0,65106.0,0.26296243]
[1718913172363,0.1916,65108.0,65106.0,0.16296243]
[1718913173163,0.1916,65108.0,65106.0,0.15696243]
[1718913173516,0.1916,65108.0,65106.0,0.16196243]
[1718913174018,0.1916,65108.0,65106.0,0.15696243]
[1718913174367,0.1916,65108.0,65106.0,0.16096243]
[1718913174958,0.1916,65108.0,65106.0,0.16190843]
[1718913175154,0.1099,65107.0,65106.0,0.009946]
[1718913175857,0.1099,65107.0,65106.0,0.004946]
[1718913176001,0.1299,65107.0,65106.0,0.004946]
[1718913176402,0.1099,65107.0,65106.0,0.004946]
[1718913176709,0.1299,65107.0,65106.0,0.004946]
[1718913177317,0.1299,65107.0,65106.0,0.000946]
[1718913177624,0.1129,65107.0,65106.0,0.000946]
[1718913178177,0.1877,65107.0,65106.0,0.000946]
[1718913181307,0.1129,65107.0,65106.0,0.000946]
[1718913181505,0.1877,65107.0,65106.0,0.000946]
[1718913183271,0.003,65107.0,65106.0,0.000946]
[1718913185521,0.003,65107.0,65106.0,0.15350712]
[1718913185522,0.07186643,65107.0,65106.0,0.15350712]
[1718913185725,0.07186643,65107.0,65106.0,0.33700712]
[1718913185726,0.04890893,65107.0,65106.0,0.33700712]
[1718913185881,0.003,65107.0,65106.0,0.47320712]
[1718913186696,0.03565015,65109.0,65106.0,0.47320712]
[1718913186927,0.04590893,65109.0,65107.0,0.15256112]
[1718913187140,0.04592147,65109.0,65107.0,0.15256112]
[1718913187548,0.04592314,65109.0,65107.0,0.15256112]
[1718913187919,0.06888471,65109.0,65107.0,0.15256112]
[1718913188237,0.06888471,65109.0,65107.0,0.15556112]
[1718913188586,0.06888471,65108.0,65107.0,0.15556112]
[1718913188726,0.09184628,65109.0,65107.0,0.15556112]
[1718913189143,0.09184628,65109.0,65107.0,0.15856112]
[1718913189761,0.09184628,65109.0,65107.0,0.15556112]
[1718913189949,0.09184628,65109.0,65107.0,0.15256112]
[1718913190141,0.09184628,65109.0,65107.0,0.004]
[1718913190142,0.09184628,65108.0,65107.0,0.004]
[1718913190343,0.1073,65109.0,65107.0,0.004]
[1718913190946,0.1073,65109.0,65106.0,0.000946]
[1718913191314,0.13782253,65107.0,65106.0,0.000946]
[1718913191463,0.06614095,65108.0,65106.0,0.000946]
[1718913191664,0.06614095,65107.0,65106.0,0.000946]
[1718913191868,0.12944095,65107.0,65106.0,0.000946]
[1718913192275,0.21884095,65107.0,65106.0,0.000946]
[1718913192842,0.23884095,65107.0,65106.0,0.000946]
[1718913193152,0.21884095,65107.0,65106.0,0.000946]
[1718913193565,0.3080762,65107.0,65106.0,0.000946]
[1718913194363,0.4620633,65107.0,65106.0,0.000946]
[1718913195957,0.4420633,65107.0,65106.0,0.000946]
[1718913196153,0.28685414,65107.0,65106.0,0.000946]
[1718913196364,0.22061889,65107.0,65106.0,0.000946]
[1718913197484,0.22063072,65107.0,65106.0,0.000946]
[1718913199815,0.1557,65107.0,65106.0,0.000946]
[1718913200007,0.17715128,65107.0,65106.0,0.000946]
[1718913200563,0.1124,65107.0,65106.0,0.000946]
[1718913200766,0.17795854,65107.0,65106.0,0.000946]
[1718913202599,0.17609875,65111.0,65106.0,0.000946]
[1718913202802,0.25624813,65111.0,65106.0,0.000946]
[1718913203003,0.25624813,65111.0,65103.0,0.000946]
[1718913203004,0.07628172,65110.0,65103.0,0.000946]
[1718913203213,0.1872,65104.0,65103.0,0.000946]
[1718913204341,0.1872,65104.0,65103.0,0.001946]
[1718913205057,0.1872,65104.0,65103.0,0.002946]
[1718913205464,0.1872,65104.0,65103.0,0.004946]
[1718913206077,0.25738774,65104.0,65103.0,0.004946]
[1718913206592,0.1872,65104.0,65090.0,0.1122]
[1718913206792,0.1553149,65095.0,65090.0,0.1122]
[1718913206996,0.15530794,65095.0,65090.0,0.1122]
[1718913207202,0.15530794,65095.0,65090.0,0.1322]
[1718913207403,0.15530794,65096.0,65090.0,0.1322]
[1718913207692,0.13801888,65091.0,65090.0,0.1322]
[1718913207897,0.13801888,65091.0,65090.0,0.1332]
[1718913208106,0.15530794,65097.0,65090.0,0.1332]
[1718913208314,0.15530794,65096.0,65090.0,0.1332]
[1718913208668,0.15530794,65096.0,65090.0,0.1122]
[1718913208880,0.15530794,65095.0,65090.0,0.1322]
[1718913209065,0.1872,65104.0,65090.0,0.1322]
[1718913209066,0.15530794,65096.0,65092.0,0.02]
[1718913209285,0.15530794,65098.0,65092.0,0.02]
[1718913209474,0.15530794,65098.0,65091.0,0.02]
[1718913209632,0.13797154,65092.0,65091.0,0.02]
[1718913210261,0.15520361,65098.0,65092.0,0.02]
[1718913210674,0.15520361,65098.0,65095.0,0.02]
[1718913210879,0.15520361,65098.0,65097.0,0.13]
[1718913211081,0.15520361,65099.0,65097.0,0.2378]
[1718913211322,0.15520361,65100.0,65097.0,0.2378]
[1718913211526,0.15520361,65101.0,65097.0,0.2378]
[1718913211956,0.003,65098.0,65097.0,0.2378]
[1718913212325,0.0779,65098.0,65089.0,0.2378]
[1718913212523,0.13793412,65093.0,65089.0,0.2378]
[1718913212756,0.19259535,65092.0,65089.0,0.2378]
[1718913212926,0.05466123,65091.0,65089.0,0.2378]
[1718913213131,0.05466123,65090.0,65089.0,0.2378]
[1718913213357,0.05466842,65090.0,65089.0,0.2378]
[1718913214279,0.19259557,65090.0,65089.0,0.2378]
[1718913214941,0.19259557,65090.0,65089.0,0.2438]
[1718913215744,0.19259557,65090.0,65089.0,0.2498]
[1718913216349,0.002,65098.0,65089.0,0.2498]
[1718913216548,0.13793353,65090.0,65089.0,0.2498]
[1718913216754,0.19266343,65090.0,65089.0,0.2498]
[1718913217402,0.19266343,65090.0,65089.0,0.2438]
[1718913217591,0.19266343,65090.0,65089.0,0.006]
[1718913217794,0.2167584,65090.0,65089.0,0.006]
[1718913217998,0.2167584,65090.0,65089.0,0.026]
[1718913218198,0.07882487,65090.0,65089.0,0.026]
[1718913219098,0.07882487,65090.0,65089.0,0.006]
[1718913219626,0.21801351,65090.0,65089.0,0.006]
[1718913219879,0.02409497,65090.0,65089.0,0.012]
[1718913220100,0.21800889,65090.0,65089.0,0.012]
[1718913220942,0.16201873,65090.0,65089.0,0.012]
[1718913221117,0.21842708,65090.0,65089.0,0.012]
[1718913222078,0.10234603,65090.0,65089.0,0.011746]
[1718913222263,0.25751026,65090.0,65089.0,0.011365]
[1718913222853,0.10222227,65090.0,65089.0,0.011365]
[1718913223017,0.10222227,65090.0,65089.0,0.006]
[1718913223220,0.10222227,65090.0,65079.0,0.2462]
[1718913223425,0.13788727,65082.0,65079.0,0.2462]
[1718913223625,0.05628459,65081.0,65079.0,0.2462]
[1718913223831,0.05628459,65080.0,65078.0,0.00948199]
[1718913224037,0.05628459,65079.0,65078.0,0.00948199]
[1718913225115,0.05628459,65079.0,65078.0,0.01348199]
[1718913225656,0.05244909,65079.0,65078.0,0.01348199]
[1718913225856,0.05605241,65079.0,65078.0,0.01748199]
[1718913226309,0.05605241,65079.0,65078.0,0.03748199]
[1718913226507,0.05605241,65079.0,65078.0,0.01748199]
[1718913226892,0.05605241,65079.0,65078.0,0.03748199]
[1718913228311,0.05605241,65079.0,65078.0,0.01748199]
[1718913229060,0.13768659,65081.0,65078.0,0.01748199]
[1718913229198,0.05648851,65080.0,65078.0,0.01748199]
[1718913229397,0.05648851,65079.0,65078.0,0.01748199]
[1718913229936,0.05648851,65079.0,65078.0,0.01348199]
[1718913230838,0.05648851,65079.0,65078.0,0.03148199]
[1718913231293,0.05648851,65079.0,65078.0,0.27638199]
[1718913231294,0.17121158,65079.0,65078.0,0.27638199]
[1718913231698,0.05648851,65079.0,65078.0,0.28038199]
[1718913232781,0.13766661,65084.0,65078.0,0.28038199]
[1718913232782,0.13768455,65084.0,65081.0,0.02]
[1718913232996,0.13768455,65084.0,65082.0,0.02]
[1718913233199,0.13768455,65084.0,65081.0,0.02]
[1718913233200,0.05710899,65083.0,65081.0,0.02]
[1718913233815,0.05710899,65082.0,65081.0,0.02]
[1718913234611,0.05710899,65082.0,65078.0,0.27238199]
[1718913234809,0.05710899,65081.0,65078.0,0.27238199]
[1718913235019,0.05710899,65080.0,65078.0,0.27238199]
[1718913235224,0.05710899,65079.0,65078.0,0.25238199]
[1718913235480,0.05712697,65079.0,65078.0,0.25238199]
[1718913235893,0.19488452,65079.0,65078.0,0.25238199]
[1718913236007,0.05712697,65079.0,65078.0,0.00948199]
[1718913236241,0.19488464,65079.0,65078.0,0.01148199]
[1718913236669,0.05712697,65079.0,65078.0,0.01148199]
[1718913237934,0.05712697,65079.0,65078.0,0.01948199]
[1718913238181,0.05712697,65079.0,65078.0,0.01748199]
[1718913239325,0.05712697,65079.0,65078.0,0.01348199]
[1718913239683,0.05712697,65079.0,65078.0,0.03448199]
[1718913239940,0.13212697,65079.0,65078.0,0.03448199]
[1718913240259,0.13212697,65079.0,65078.0,0.01448199]
[1718913241508,0.01,65080.0,65078.0,0.03448199]
[1718913241698,0.06033375,65079.0,65078.0,0.17348199]
[1718913241902,0.06033375,65079.0,65078.0,0.28088199]
[1718913242417,0.06033375,65079.0,65078.0,0.42844311]
[1718913243061,0.17512084,65079.0,65078.0,0.42844311]
[1718913243380,0.1521695,65079.0,65078.0,0.42844311]
[1718913243594,0.1521695,65079.0,65078.0,0.42944311]
[1718913243808,0.06033375,65079.0,65078.0,0.42944311]
[1718913244030,0.17513342,65079.0,65078.0,0.42944311]
[1718913244232,0.06033375,65079.0,65078.0,0.42944311]
[1718913244644,0.06404381,65079.0,65078.0,0.42944311]
[1718913245067,0.00086,65079.0,65078.0,0.42944311]
[1718913245274,0.06421965,65079.0,65078.0,0.42944311]
[1718913245483,0.06421965,65079.0,65078.0,0.42844311]
[1718913245818,0.06421965,65079.0,65078.0,0.43944311]
[1718913246204,0.00086,65079.0,65078.0,0.44044311]
[1718913246395,0.06385804,65079.0,65078.0,0.43944311]
[1718913246756,0.06385804,65079.0,65078.0,0.45044311]
[1718913247241,0.06385804,65079.0,65078.0,0.46044311]
[1718913247384,0.06385804,65079.0,65078.0,0.45044311]
[1718913247605,0.06385804,65079.0,65078.0,0.46144311]
[1718913247807,0.06375876,65079.0,65078.0,0.46144311]
[1718913248006,0.06375876,65079.0,65078.0,0.47144311]
[1718913249146,0.06375876,65079.0,65078.0,0.46144311]
[1718913249674,0.05607876,65079.0,65078.0,0.46144311]
[1718913249820,0.05607876,65080.0,65078.0,0.21504311]
[1718913250025,0.04596511,65081.0,65079.0,0.17256112]
[1718913250230,0.03469347,65082.0,65081.0,0.02]
[1718913250433,0.06893109,65082.0,65081.0,0.42096112]
[1718913250812,0.04285561,65083.0,65082.0,0.02]
[1718913251035,0.09191185,65084.0,65082.0,0.17256112]
[1718913251246,0.09191185,65084.0,65083.0,0.17256112]
[1718913252237,0.09191185,65084.0,65083.0,0.17656112]
[1718913253144,0.09191185,65084.0,65083.0,0.18056112]
[1718913254028,0.09191025,65084.0,65083.0,0.18056112]
[1718913254544,0.13786538,65089.0,65088.0,0.02]
[1718913254747,0.15509855,65095.0,65089.0,0.02]
[1718913254948,0.13786505,65091.0,65089.0,0.2688]
[1718913255184,0.13786505,65092.0,65089.0,0.2688]
[1718913255532,0.06701462,65090.0,65089.0,0.2688]
[1718913255921,0.07001462,65090.0,65089.0,0.2688]
[1718913256656,0.07101462,65090.0,65089.0,0.2688]
[1718913259557,0.07101462,65090.0,65089.0,0.42136112]
[1718913259558,0.13860533,65090.0,65089.0,0.42136112]
[1718913260133,0.07101462,65090.0,65089.0,0.42136112]
[1718913260353,0.13860512,65090.0,65089.0,0.42136112]
[1718913260897,0.13860512,65090.0,65088.0,0.02]
[1718913261092,0.0675905,65089.0,65088.0,0.02]
[1718913261293,0.0675905,65089.0,65084.0,0.02]
[1718913261501,0.0675905,65089.0,65079.0,0.25946112]
[1718913261502,0.0675905,65088.0,65086.0,0.02]
[1718913261688,0.0675905,65088.0,65079.0,0.238]
[1718913261689,0.13787384,65089.0,65087.0,0.02]
[1718913261894,0.06638339,65088.0,65087.0,0.02]
[1718913262492,0.06638339,65088.0,65086.0,0.02]
[1718913262742,0.06638339,65087.0,65086.0,0.02]
[1718913263362,0.06571852,65087.0,65086.0,0.02]
[1718913263691,0.06571852,65087.0,65084.0,0.02]
[1718913263967,0.06571852,65086.0,65085.0,0.02]
[1718913264109,0.06571852,65086.0,65084.0,0.02]
[1718913264315,0.003,65087.0,65086.0,0.02]
[1718913264556,0.06870144,65087.0,65086.0,0.02]
[1718913264782,0.06870144,65087.0,65084.0,0.02]
[1718913264927,0.07170144,65087.0,65084.0,0.021]
[1718913265141,0.004,65087.0,65086.0,0.02]
[1718913265335,0.0696395,65087.0,65084.0,0.021]
[1718913265541,0.075,65085.0,65084.0,0.001]
[1718913265800,0.17579104,65085.0,65084.0,0.002]
[1718913265922,0.1406395,65085.0,65084.0,0.002]
[1718913266323,0.14063589,65085.0,65084.0,0.001]
[1718913266529,0.14063589,65085.0,65084.0,0.002]
[1718913266732,0.14063589,65085.0,65084.0,0.001]
[1718913267357,0.25413589,65085.0,65084.0,0.001]
[1718913267559,0.28655094,65085.0,65084.0,0.001]
[1718913267755,0.28955094,65085.0,65084.0,0.001]
[1718913269515,0.28780327,65085.0,65084.0,0.001]
[1718913269731,0.25538822,65085.0,65084.0,0.001]
[1718913270738,0.50786857,65085.0,65084.0,0.001]
[1718913270942,0.72814182,65085.0,65078.0,0.00948199]
[1718913271138,0.1875,65079.0,65078.0,0.00948199]
[1718913271349,0.31381048,65079.0,65076.0,1e-08]
[1718913271556,0.09991923,65077.0,65076.0,1e-08]
[1718913271764,0.43664182,65077.0,65076.0,1e-08]
[1718913271961,0.46218971,65077.0,65076.0,1e-08]
[1718913272362,0.4621119,65077.0,65076.0,1e-08]
[1718913273149,0.4671119,65077.0,65076.0,0.00100001]
[1718913273535,0.93179076,65077.0,65076.0,0.00100001]
[1718913273964,0.73179076,65077.0,65076.0,0.00100001]
[1718913274153,0.96258076,65077.0,65076.0,0.00100001]
[1718913274351,0.89877035,65077.0,65076.0,0.00100001]
[1718913274478,0.96349968,65077.0,65076.0,0.00100001]
[1718913274680,0.91605382,65077.0,65076.0,0.00100001]
[1718913275095,0.91105382,65077.0,65076.0,1e-08]
[1718913275515,0.92505382,65077.0,65076.0,0.00100001]
[1718913275726,0.9905081,65077.0,65076.0,0.00100001]
[1718913275927,1.0035081,65077.0,65076.0,0.00200001]
[1718913276128,0.98950759,65077.0,65076.0,0.00100001]
[1718913276481,1.01650759,65077.0,65076.0,0.00300001]
[1718913276857,0.85149653,65077.0,65076.0,0.00300001]
[1718913277059,0.95141576,65077.0,65076.0,0.00300001]
[1718913277257,0.95177801,65077.0,65076.0,0.00300001]
[1718913277456,0.85185878,65077.0,65076.0,0.00300001]
[1718913277821,0.95177801,65077.0,65076.0,0.00300001]
[1718913278212,0.97588546,65077.0,65076.0,0.00300001]
[1718913278565,0.87596623,65077.0,65076.0,0.00300001]
[1718913278775,1.01051271,65077.0,65076.0,0.00300001]
[1718913278977,0.87606975,65077.0,65076.0,0.00300001]
[1718913280426,0.26045449,65077.0,65076.0,0.00300001]
[1718913280569,0.32966449,65077.0,65076.0,0.00300001]
[1718913280967,0.22966449,65077.0,65076.0,0.00300001]
[1718913281173,0.12966449,65077.0,65076.0,0.00300001]
[1718913281413,0.11566449,65077.0,65076.0,0.00200001]
[1718913281655,0.10366449,65077.0,65076.0,0.00100001]
[1718913282056,0.10932467,65077.0,65076.0,0.00200001]
[1718913282262,0.095327,65077.0,65076.0,0.00100001]
[1718913282416,0.104327,65077.0,65076.0,0.00200001]
[1718913282619,0.25465213,65085.0,65076.0,0.00200001]
[1718913282813,0.27556112,65084.0,65076.0,0.00100001]
[1718913283066,0.27556112,65084.0,65076.0,0.00200001]
[1718913283219,0.007,65077.0,65076.0,0.00200001]
[1718913283421,0.007,65077.0,65076.0,0.00190001]
[1718913284839,0.27556112,65084.0,65074.0,0.1615]
[1718913285045,0.02410449,65077.0,65076.0,0.021]
[1718913285281,0.02410449,65077.0,65076.0,0.002]
[1718913285492,0.13874967,65077.0,65076.0,0.002]
[1718913285693,0.13974967,65077.0,65076.0,0.002]
[1718913285888,0.02510449,65077.0,65076.0,0.002]
[1718913286095,0.02510449,65077.0,65076.0,0.022]
[1718913286299,0.13974967,65077.0,65076.0,0.022]
[1718913286515,0.13974967,65077.0,65074.0,0.1425]
[1718913286516,0.02410449,65077.0,65074.0,0.1625]
[1718913286721,0.11464868,65076.0,65074.0,0.1625]
[1718913287129,0.11464868,65075.0,65074.0,0.1615]
[1718913287647,0.11464868,65076.0,65074.0,0.1615]
[1718913288101,0.09171926,65075.0,65074.0,0.1615]
[1718913289281,0.11464868,65076.0,65074.0,0.1615]
[1718913289490,0.001,65075.0,65074.0,0.1415]
[1718913289696,0.001,65075.0,65074.0,0.1615]
[1718913290328,0.11564868,65075.0,65074.0,0.1615]
[1718913290560,0.001,65075.0,65074.0,0.2733]
[1718913290757,0.001,65075.0,65074.0,0.30119779]
[1718913290758,0.04685637,65075.0,65074.0,0.30119779]
[1718913290960,0.001,65075.0,65074.0,0.45375891]
[1718913291156,0.02910449,65077.0,65076.0,0.02]
[1718913291360,0.02910449,65077.0,65076.0,0.44445891]
[1718913291959,0.02410449,65077.0,65076.0,0.44445891]
[1718913292876,0.07589589,65077.0,65076.0,0.44445891]
[1718913293078,0.0758954,65077.0,65076.0,0.44445891]
[1718913294071,0.0768954,65077.0,65076.0,0.45245891]
[1718913294485,0.0768954,65077.0,65076.0,0.45845891]
[1718913294659,0.07630945,65077.0,65076.0,0.45845891]
[1718913295497,0.1195618,65077.0,65076.0,0.45845891]
[1718913295934,0.07630945,65077.0,65076.0,0.45845891]
[1718913296289,0.05220496,65077.0,65076.0,0.45845891]
[1718913297693,0.05255586,65077.0,65076.0,0.45845891]
[1718913300429,0.12137635,65077.0,65076.0,0.04189779]
[1718913300600,0.05255586,65077.0,65076.0,0.014]
[1718913300961,0.05212946,65077.0,65076.0,0.014]
[1718913301427,0.13862559,65077.0,65076.0,0.014]
[1718913301638,0.05212659,65077.0,65076.0,0.014]
[1718913301836,0.05212659,65077.0,65076.0,0.008]
[1718913302061,0.05212659,65077.0,65071.0,0.02789779]
[1718913302208,0.18874918,65076.0,65071.0,0.02789779]
[1718913302416,0.001,65077.0,65068.0,0.02789779]
[1718913302417,0.13762259,65073.0,65068.0,0.02789779]
[1718913302614,0.001,65077.0,65067.0,0.02948199]
[1718913302615,0.18899682,65072.0,65069.0,0.02789779]
[1718913302818,0.18899682,65071.0,65069.0,0.02789779]
[1718913303024,0.05137423,65070.0,65069.0,0.02789779]
[1718913303398,0.05137423,65070.0,65069.0,0.04789779]
[1718913303592,0.05137423,65070.0,65069.0,0.02789779]
[1718913303834,0.05137423,65070.0,65069.0,0.02889779]
[1718913304043,0.006,65072.0,65069.0,0.02889779]
[1718913304369,0.05119124,65071.0,65069.0,0.02889779]
[1718913304525,0.05119124,65070.0,65069.0,0.02889779]
[1718913304728,0.05319124,65070.0,65069.0,0.02889779]
[1718913305109,0.05319124,65070.0,65069.0,0.02789779]
[1718913305309,0.05319124,65070.0,65069.0,0.001]
[1718913305514,0.05619124,65070.0,65069.0,0.001]
[1718913305784,0.05419124,65070.0,65069.0,0.001946]
[1718913306116,0.05419124,65070.0,65069.0,0.02984379]
[1718913307125,0.003,65070.0,65069.0,0.02984379]
[1718913307341,0.19507,65070.0,65069.0,0.001946]
[1718913308186,0.19507,65070.0,65069.0,0.000946]
[1718913308187,0.05530823,65070.0,65069.0,0.000946]
[1718913308407,0.19507,65070.0,65069.0,0.000946]
[1718913308772,0.19507,65070.0,65069.0,0.02884379]
[1718913308979,0.19407,65070.0,65069.0,0.02884379]
[1718913309298,0.05630823,65070.0,65069.0,0.04884379]
[1718913309508,0.19707,65070.0,65069.0,0.02884379]
[1718913309716,0.19707,65070.0,65069.0,0.000946]
[1718913309889,0.05930823,65070.0,65069.0,0.000946]
[1718913310074,0.05630823,65070.0,65069.0,0.000946]
[1718913310269,0.004,65070.0,65069.0,0.000946]
[1718913310590,0.23061431,65070.0,65069.0,0.000946]
[1718913310793,0.21471141,65070.0,65069.0,0.000946]
[1718913311617,0.21171141,65070.0,65069.0,0.000946]
[1718913311871,0.20771141,65070.0,65069.0,0.000946]
[1718913312097,0.21271141,65070.0,65069.0,0.000946]
[1718913312259,0.05768238,65070.0,65069.0,0.000946]
[1718913312412,0.10981879,65070.0,65069.0,0.000946]
[1718913312619,0.11181879,65070.0,65069.0,0.000946]
[1718913312905,0.10881879,65070.0,65069.0,0.000946]
[1718913313319,0.11881879,65070.0,65069.0,0.001946]
[1718913313529,0.06613641,65070.0,65069.0,0.001946]
[1718913313736,0.06613641,65070.0,65067.0,0.003418]
[1718913313737,0.2,65068.0,65067.0,0.003418]
[1718913313940,0.2059956,65068.0,65067.0,0.003418]
[1718913314345,0.2289956,65068.0,65067.0,0.003418]
[1718913315475,0.2309956,65068.0,65067.0,0.004418]
[1718913315649,0.2289956,65068.0,65067.0,0.003418]
[1718913315875,0.2309956,65068.0,65067.0,0.004418]
[1718913316422,0.27711846,65068.0,65067.0,0.005418]
[1718913316920,0.67703769,65068.0,65067.0,0.005418]
[1718913317255,0.47703769,65068.0,65067.0,0.005418]
[1718913318814,0.37711846,65068.0,65067.0,0.005418]
[1718913319164,0.47703769,65068.0,65067.0,0.005418]
[1718913319394,0.42510343,65068.0,65067.0,0.005418]
[1718913319592,0.4781097,65068.0,65067.0,0.005418]
[1718913321285,0.37819047,65068.0,65067.0,0.005418]
[1718913322278,0.06600627,65068.0,65067.0,0.005418]
[1718913322489,0.013,65068.0,65067.0,0.005418]
[1718913322692,0.06591551,65068.0,65067.0,0.005418]
[1718913323140,0.19255223,65068.0,65067.0,0.004418]
[1718913323343,0.05491551,65068.0,65067.0,0.005418]
[1718913323545,0.06891551,65068.0,65067.0,0.005418]
[1718913323960,0.06691551,65068.0,65067.0,0.004418]
[1718913324167,0.21055223,65068.0,65067.0,0.005418]
[1718913324753,0.07891551,65068.0,65067.0,0.006418]
[1718913324956,0.21655223,65068.0,65067.0,0.006418]
[1718913325301,0.20255223,65068.0,65067.0,0.005418]
[1718913325535,0.21055223,65068.0,65067.0,0.006418]
[1718913325749,0.21100138,65068.0,65067.0,0.006418]
[1718913328506,0.23619366,65068.0,65067.0,0.006418]
[1718913328768,0.09854367,65068.0,65067.0,0.006418]
[1718913328970,0.23578838,65068.0,65067.0,0.006418]
[1718913329190,0.21059656,65068.0,65067.0,0.006418]
[1718913329411,0.42551125,65068.0,65067.0,0.006418]
[1718913329646,0.34851125,65068.0,65055.0,0.2373]
[1718913329865,0.13762998,65061.0,65055.0,0.2373]
[1718913330081,0.1874,65065.0,65055.0,0.2373]
[1718913330082,0.13762998,65058.0,65055.0,0.2373]
[1718913330279,0.15483372,65063.0,65052.0,0.2373]
[1718913330280,0.19058011,65057.0,65052.0,0.2373]
[1718913330485,0.1376135,65055.0,65052.0,0.2373]
[1718913330723,0.05295013,65054.0,65052.0,0.2373]
[1718913330933,0.05295013,65053.0,65052.0,0.2373]
[1718913331471,0.05295013,65053.0,65052.0,0.2413]
[1718913331670,0.05295013,65053.0,65052.0,0.26919779]
[1718913332098,0.05295013,65053.0,65052.0,0.27719779]
[1718913332308,0.05295013,65053.0,65052.0,0.27319779]
[1718913332507,0.05395013,65053.0,65052.0,0.28019779]
[1718913333074,0.05295013,65053.0,65052.0,0.27319779]
[1718913333482,0.05295013,65053.0,65052.0,0.27519779]
[1718913333814,0.05395013,65053.0,65052.0,0.28419779]
[1718913334020,0.05395013,65053.0,65052.0,0.27619779]
[1718913334958,0.05312391,65053.0,65052.0,0.27619779]
[1718913336411,0.05312391,65053.0,65052.0,0.27610814]
[1718913337555,0.05312391,65053.0,65052.0,0.44866926]
[1718913337761,0.12191508,65053.0,65052.0,0.44866926]
[1718913337962,0.001,65053.0,65052.0,0.44866926]
[1718913338161,0.12249878,65053.0,65052.0,0.44866926]
[1718913338367,0.05372381,65053.0,65052.0,0.44866926]
[1718913338574,0.12250756,65053.0,65052.0,0.44866926]
[1718913339240,0.05372381,65053.0,65052.0,0.44866926]
[1718913339588,0.12251606,65053.0,65052.0,0.44866926]
[1718913339803,0.12251606,65053.0,65052.0,0.44961526]
[1718913340005,0.12251477,65053.0,65052.0,0.44961526]
[1718913340256,0.05372381,65053.0,65052.0,0.44961526]
[1718913341293,0.05359081,65053.0,65052.0,0.44961526]
[1718913341838,0.09460029,65053.0,65052.0,0.44961526]
[1718913342476,0.20933383,65053.0,65052.0,0.44961526]
[1718913342619,0.18638671,65053.0,65052.0,0.44961526]
[1718913343277,0.09460029,65053.0,65052.0,0.44961526]
[1718913343476,0.18642083,65053.0,65052.0,0.44961526]
[1718913344437,0.20947421,65053.0,65052.0,0.44961526]
[1718913344602,0.09465235,65053.0,65052.0,0.44961526]
[1718913344806,0.20947421,65053.0,65052.0,0.44961526]
[1718913345030,0.20948566,65053.0,65052.0,0.44961526]
[1718913345231,0.09465235,65053.0,65052.0,0.44961526]
[1718913347484,0.09458251,65053.0,65052.0,0.44961526]
[1718913349890,0.075,65065.0,65052.0,0.44961526]
[1718913349891,0.08734223,65077.0,65068.0,0.30349779]
[1718913350090,0.08734223,65077.0,65068.0,0.46605891]
[1718913350091,0.00086,65077.0,65068.0,0.46605891]
[1718913350202,0.00086,65077.0,65068.0,0.64105891]
[1718913350203,0.16183008,65069.0,65068.0,0.64105891]
[1718913350400,0.06984683,65069.0,65068.0,0.63105891]
[1718913350607,0.00086,65069.0,65068.0,0.63105891]
[1718913351034,0.00086,65069.0,65068.0,0.64105891]
[1718913351035,0.04049231,65069.0,65068.0,0.64105891]
[1718913351239,0.04682081,65069.0,65068.0,0.64105891]
[1718913351442,0.04682081,65069.0,65068.0,0.56605891]
[1718913351626,0.04682081,65069.0,65068.0,0.57105891]
[1718913351848,0.04782081,65069.0,65068.0,0.57705891]
[1718913352331,0.00186,65069.0,65068.0,0.58505891]
[1718913353080,0.00286,65069.0,65068.0,0.59405891]
[1718913353534,0.00286,65069.0,65068.0,0.58405891]
[1718913353914,0.00186,65069.0,65068.0,0.56505891]
[1718913354162,0.00186,65069.0,65068.0,0.57305891]
[1718913354301,0.00286,65069.0,65068.0,0.57305891]
[1718913354502,0.00286,65069.0,65068.0,0.56505891]
[1718913355424,0.00286,65069.0,65068.0,0.57005891]
[1718913355627,0.00286,65069.0,65068.0,0.57905891]
[1718913356215,0.00186,65069.0,65068.0,0.57005891]
[1718913356421,0.00286,65069.0,65068.0,0.57905891]
[1718913357215,0.00386,65069.0,65068.0,0.59005891]
[1718913357411,0.00286,65069.0,65068.0,0.57605891]
[1718913357926,0.00186,65069.0,65068.0,0.56505891]
[1718913359830,0.00186,65069.0,65068.0,0.05689779]
[1718913360057,0.09362351,65069.0,65068.0,0.05689779]
[1718913360294,0.15013401,65069.0,65068.0,0.05689779]
[1718913360515,0.03442962,65069.0,65068.0,0.04789779]
[1718913360736,0.03442962,65069.0,65068.0,0.05389779]
[1718913361013,0.03442962,65069.0,65068.0,0.03389779]
[1718913361503,0.1491444,65069.0,65068.0,0.03389779]
[1718913361727,0.1491444,65069.0,65068.0,0.02789779]
[1718913361728,0.03442962,65069.0,65068.0,0.02789779]
[1718913361970,0.1501444,65069.0,65068.0,0.04089779]
[1718913362170,0.14582962,65069.0,65068.0,0.04089779]
[1718913362467,0.28247489,65069.0,65068.0,0.03389779]
[1718913362633,0.14482962,65069.0,65068.0,0.03389779]
[1718913362835,0.14507115,65069.0,65068.0,0.03389779]
[1718913363650,0.14707115,65069.0,65068.0,0.03389779]
[1718913363846,0.14707115,65069.0,65068.0,0.02789779]
[1718913364254,0.15407115,65069.0,65068.0,0.02889779]
[1718913364788,0.29173696,65069.0,65068.0,0.02889779]
[1718913364989,0.15407115,65069.0,65068.0,0.02889779]
[1718913365436,0.16607115,65069.0,65068.0,0.02989779]
[1718913365586,0.16607115,65069.0,65068.0,0.002]
[1718913365587,0.30687115,65069.0,65068.0,0.002]
[1718913365784,0.2454,65068.0,65060.0,0.02789779]
[1718913365990,0.13766092,65066.0,65063.0,0.02789779]
[1718913366191,0.03417012,65065.0,65063.0,0.02789779]
[1718913366601,0.03417012,65064.0,65063.0,0.02789779]
[1718913367108,0.03475887,65065.0,65064.0,0.02789779]
[1718913367433,0.04175887,65065.0,65064.0,0.02789779]
[1718913368066,0.007,65064.0,65063.0,0.02989779]
[1718913368238,0.04175887,65064.0,65063.0,0.02889779]
[1718913368781,0.04075887,65064.0,65063.0,0.02889779]
[1718913369035,0.006,65064.0,65063.0,0.02889779]